Workbook

Sheet NSU
B1: Lotta Vahvelainen | E1: 22.7.1998 Helsinki
B2: SUPERPESIS | E2: Runkosarja | I2: Kärkilyönnit (KL), pesänvälit | Q2: Runkosarja | U2: Ylempi loppusarja | Z2: Alempi loppusarja | AG2: Arvo-ottelut ja mitalit
B3: Vuosi | C3: Sija | D3: Seura | E3: OTT | F3: KUN | G3: LÖI | H3: TOI | I3: KL | J3: 0 > 1 | K3: 1 > 2 | L3: 2 > 3 | M3: 3 > k | N3: KL-% | P3: LÖI | Q3: TOI | R3: L+T | S3: KL | U3: OTT | V3: KUN | W3: LÖI | X3: TOI | Y3: KL | Z3: OTT | AA3: KUN | AB3: LÖI | AC3: TOI | AD3: KL | AE3: IL | AF3: LL | AG3: Halli | AH3: K | AI3: H | AJ3: P
B4: 2013 | D4: Tahko | F4: suomensarja
B5: 2014 | D5: Tahko | F5: suomensarja
B6: 2015 | D6: Tahko | F6: ykköspesis
B7: 2016 | D7: Tahko | F7: ykköspesis
B8: 2017 | D8: Tahko | F8: ykköspesis
B9: 2018 | C9: 10. | D9: Tahko | E9: 26 | F9: 0 | G9: 6 | H9: 13 | I9: 92 | J9: 13 | K9: 35 | L9: 38 | M9: 6 | N9: 51.1 % | O9: 180
B10: 2019 | C10: 6. | D10: Tahko | E10: 24 | F10: 3 | G10: 10 | H10: 18 | I10: 113 | J10: 16 | K10: 45 | L10: 39 | M10: 13 | N10: 59.8 % | O10: 189 | S10: 10. | U10: 3 | V10: 1 | W10: 1 | X10: 1 | Y10: 12
B11: 2020 | C11: 5. | D11: Tahko | E11: 20 | F11: 1 | G11: 16 | H11: 19 | I11: 80 | J11: 9 | K11: 22 | L11: 32 | M11: 17 | N11: 66.7 % | O11: 120 | U11: 2 | V11: 0 | W11: 2 | X11: 3 | Y11: 10
B12: 2021 | C12: 6. | D12: Tahko | E12: 24 | F12: 3 | G12: 21 | H12: 18 | I12: 109 | J12: 9 | K12: 28 | L12: 48 | M12: 24 | N12: 63.0 % | O12: 173 | U12: 4 | V12: 0 | W12: 4 | X12: 2 | Y12: 11
B13: 2022 | C13: 8. | D13: Tahko | E13: 24 | F13: 7 | G13: 26 | H13: 13 | I13: 111 | J13: 10 | K13: 23 | L13: 45 | M13: 33 | N13: 59.4 % | O13: 187 | U13: 3 | V13: 0 | W13: 1 | X13: 0 | Y13: 4
B14: 2023 | C14: 10. | D14: Tahko | E14: 24 | F14: 5 | G14: 14 | H14: 18 | I14: 120 | J14: 17 | K14: 43 | L14: 41 | M14: 19 | N14: 64.2 % | O14: 187 | S14: 5.
B15: 2024 | C15: 10. | D15: Tahko | E15: 24 | F15: 2 | G15: 15 | H15: 18 | I15: 81 | J15: 7 | K15: 21 | L15: 36 | M15: 17 | N15: 55.1 % | O15: 147 | U15: 2 | V15: 0 | W15: 0 | X15: 2 | Y15: 3
B16: Yhteensä | E16: =SUM(E4:E15) -> 166 | F16: 21 | G16: 108 | H16: 117 | I16: 706 | J16: 81 | K16: 217 | L16: 279 | M16: 129 | N16: =PRODUCT(I16/O16) -> 59.7 % | O16: =SUM(O4:O15) -> 1183 | U16: 14 | V16: 1 | W16: 8 | X16: 8 | Y16: 40 | Z16: 0 | AA16: 0 | AB16: 0 | AC16: 0 | AD16: 0 | AE16: 0 | AF16: 0 | AG16: 0 | AH16: 0 | AI16: 0 | AJ16: 0
B17: Pesispörssi | D17: =SUM(F16:H16)+((I16-F16-G16)/3)+(E16/3)+(AE16*25)+(AF16*25)+(AG16*10)+(AH16*25)+(AI16*20)+(AJ16*15) -> 493.7
B19: URA SUPERISSA | E19: OTT | F19: KUN | G19: LÖI | H19: TOI | I19: KL | K19: ka/L | L19: ka/T | M19: ka/KL | N19: K - % | P19: ENSIMMÄISET RUNKOSARJASSA
B20: Runkosarja | E20: =PRODUCT(E16) -> 166 | F20: =PRODUCT(F16) -> 21 | G20: =PRODUCT(G16) -> 108 | H20: =PRODUCT(H16) -> 117 | I20: =PRODUCT(I16) -> 706 | K20: =PRODUCT((F20+G20)/E20) -> 0.78 | L20: =PRODUCT(H20/E20) -> 0.70 | M20: =PRODUCT(I20/E20) -> 4.25 | N20: =PRODUCT(N16) -> 59.7 % | O20: =PRODUCT(O16) -> 1183 | P20: Ottelu | R20: 09.05. 2018 Tahko - Pesäkarhut 0-2 (3-10, 0-3) | AB20: 1. ottelu | AD20: 19 v 9 kk 17 pv
B21: Ylempi loppusarja | E21: =PRODUCT(U16) -> 14 | F21: =PRODUCT(V16) -> 1 | G21: =PRODUCT(W16) -> 8 | H21: =PRODUCT(X16) -> 8 | I21: =PRODUCT(Y16) -> 40 | K21: =PRODUCT((F21+G21)/E21) -> 0.64 | L21: =PRODUCT(H21/E21) -> 0.57 | M21: =PRODUCT(I21/E21) -> 2.86 | N21: =PRODUCT(I21/O21) -> 48.8 % | O21: 82 | P21: Lyöty | R21: 24.05. 2018 Tahko - Pesä Ysit 2-0 (7-6, 4-2) | AB21: 4. ottelu | AD21: 19 v 10 kk 2 pv
B22: Alempi loppusarja | O22: 0 | P22: Tuotu | R22: 24.05. 2018 Tahko - Pesä Ysit 2-0 (7-6, 4-2) | AB22: 4. ottelu | AD22: 19 v 10 kk 2 pv
B23: KAIKKI | E23: =SUM(E20:E22) -> 180 | F23: =SUM(F20:F22) -> 22 | G23: =SUM(G20:G22) -> 116 | H23: =SUM(H20:H22) -> 125 | I23: =SUM(I20:I22) -> 746 | K23: =PRODUCT((F23+G23)/E23) -> 0.77 | L23: =PRODUCT(H23/E23) -> 0.69 | M23: =PRODUCT(I23/E23) -> 4.14 | N23: =PRODUCT(I23/O23) -> 59.0 % | O23: =SUM(O20:O22) -> 1265 | P23: Kunnari | R23: 05.06. 2019 Tahko - Manse PP 1-0 (1-1, 7-6) | AB23: 33. ottelu | AD23: 20 v 10 kk 14 pv
B25: Seurat | D25: Tahko = Hyvinkään Tahko (1915), kasvattajaseura

Sheet Arvo-ottelut
B1: ITÄ - LÄNSI - KORTTI
B2: Lotta Vahvelainen | C2: 22.7.1998 Hyvinkää
B3: B-TYTÖT | C3: Itä - Länsi, tulos | D3: Joukkue | E3: Seura | G3: V | H3: T | I3: H | J3: Up. | K3: Lj. | L3: Palk. | M3: O | N3: K | O3: L | P3: T | Q3: KL | R3: 1 | S3: 2 | T3: 3 | U3: k | V3: KL-% | W3: Pelinjohtaja | X3: Yleisöä
B4: 02.07. 2016 Kouvola | C4: 2-1 (4-2, 9-10, 3-2) | D4: Länsi | E4: Tahko | I4: 1 | J4: 3p | K4: 6 | L4: I p | M4: 1 | O4: 1 | P4: 2 | Q4: 10/11 | R4: 2/2 | S4: 5/6 | T4: 2/2 | U4: 1/1 | V4: 90.9 % | W4: Toni Ojala | X4: 1615
